[Event "American Cup Open Elimination 2024"]
[Site "Saint Louis"]
[Date "2024.03.16"]
[Round "2.1"]
[White "So, Wesley"]
[Black "Sevian, Samuel"]
[Result "0-1"]
[ECO "C02"]
[WhiteElo "2789"]
[BlackElo "2697"]
[Annotator "TA"]
[PlyCount "80"]
[EventDate "2024.03.11"]
[EventType "k.o."]
[EventCountry "USA"]
[SourceTitle "playchess.com"]
[Source "ChessBase"]
[SourceQuality "1"]
[TimeControl "1500+10"]

{[%evp 19,80,8,24,0,32,-24,-17,-22,-15,-46,-11,-99,-95,-88,-80,-85,-81,-67,-68,-65,-58,-67,-75,-81,-90,-104,-81,-147,-151,-150,-146,-147,-146,-136,-139,-200,-189,-210,-140,-142,-155,-277,-267,-425,-441,-614,-627,-646,-635,-587,-614,-2495,-2066,-29961,-29956,-29956,-1365,-1232,-904,-888,-887,-855,-851]} 1. e4 {[%emt 0:10:02]} e6 {[%emt 0:10:11]} 2. d4 {[%emt 0:00:03]} d5 {[%emt 0:00:01]} 3. e5 {[%emt 0:00:01]} c5 {[%emt 0:00:01]} 4. c3 {[%emt 0:00:01]} Nc6 {[%emt 0:00:01]} 5. Nf3 {[%emt 0:00:01]} Bd7 {[%emt 0:00:01]} 6. Be2 {[%emt 0:00:02]} Nge7 {[%emt 0:00:28]} 7. O-O {[%emt 0:00:03]} Ng6 {[%emt 0:00:14]} 8. Be3 {[%emt 0:00:12]} Be7 {[%emt 0:00:01] C02: French: Advance Variation.} 9. Nbd2 {[%emt 0:00:14]} O-O {[%emt 0:00:34]} 10. g3 {[%emt 0:00:02]} h6 {[%emt 0:02:00]} 11. Re1 $146 {[%emt 0:00:43]} ({Predecessor:} 11. h4 cxd4 12. cxd4 f6 13. h5 Nh8 14. Nb3 Be8 15. exf6 Bxf6 16. Nh2 b6 17. Rc1 {½-½ Gaposhkin,N (2241)-Rotaru,I (2294) VW-Cup9 Gr16 email 2016}) 11... a5 {[%emt 0:00:23]} 12. a4 {[%emt 0:00:48]} (12. a3 $14) 12... cxd4 $11 {[%emt 0:00:13]} 13. cxd4 {[%emt 0:00:01]} Bb4 {[%emt 0:02:27]} 14. Bd3 {[%emt 0:00:06]} f5 {[%emt 0:00:04]} 15. h4 {[%emt 0:01:19]} (15. Kh1 $11 {keeps the balance.}) 15... Be8 $17 {[%emt 0:02:00]} 16. h5 {[%emt 0:00:21]} Nh8 {[%emt 0:00:02]} 17. Nh2 {[%emt 0:00:25] [#]} f4 $1 {[%emt 0:00:23]} 18. Bxf4 {[%emt 0:01:08]} Rxf4 {[%emt 0:02:20]} 19. gxf4 {[%emt 0:00:01]} Qh4 $1 {[%emt 0:00:01]} 20. Ndf3 {[%emt 0:00:05]} Qxf4 {[%emt 0:00:48]} 21. Qc1 {[%emt 0:00:02]} Qf8 {[%emt 0:00:09]} 22. Re3 {[%emt 0:01:23]} Bxh5 {[%emt 0:00:04]} 23. Qf1 {[%emt 0:00:03]} (23. Kh1 $142) 23... Ng6 $17 {[%emt 0:00:47]} 24. Bxg6 {[%emt 0:05:31]} Bxg6 {[%emt 0:00:01]} 25. Qg2 {[%emt 0:00:09]} Be4 {[%emt 0:00:30]} 26. Qg4 {[%emt 0:01:16]} Bf5 {[%emt 0:00:07]} 27. Qg3 {[%emt 0:00:12]} (27. Qh5 $17) 27... Qf7 $19 {[%emt 0:00:11]} 28. Rd1 {[%emt 0:00:46]} Kh7 {[%emt 0:01:03]} 29. Ne1 {[%emt 0:00:25]} Rf8 {[%emt 0:00:22]} 30. Nhf3 {[%emt 0:00:55]} (30. Qf3 $17 {might work better.}) 30... Be4 $19 {[%emt 0:01:08]} 31. Nh4 {[%emt 0:00:21]} (31. Nh2 $142) 31... Qh5 $19 {[%emt 0:01:11]} 32. f3 {[%emt 0:00:09]} Nxd4 {[%emt 0:00:51]} 33. Rxd4 {[%emt 0:01:51]} Bc5 {[%emt 0:00:00]} 34. fxe4 {[%emt 0:00:02]} Bxd4 {[%emt 0:00:01]} 35. Neg2 {[%emt 0:00:03]} g5 {[%emt 0:00:21]} 36. Nf5 {[%emt 0:00:24]} exf5 {[%emt 0:00:03]} 37. exf5 {[%emt 0:00:01]} Rxf5 {[%emt 0:01:05]} (37... Rc8 $142 38. Qf2 Rc1+ 39. Ne1 Qh4 40. Qxh4 Bxe3+ (40... gxh4 $2 41. Kg2 $19) 41. Kg2 gxh4 42. Nf3 Rc4 43. e6 Re4 (43... Rxa4 $2 44. Ne5 $19) 44. e7 Rxe7 (44... Rxa4 $2 {is the wrong capture.} 45. e8=Q $18) 45. Nxh4 d4 (45... Rg7+ $2 46. Kf3 $19) 46. Kf3 d3 47. Ng2 Bc5 48. f6 Re6 (48... d2 49. fxe7 d1=Q+ 50. Kf4 Qd4+ 51. Kf5 Qd5+ 52. Kf4 Bxe7 53. Kg3 Qd3+ 54. Kf2 Bd6 55. Ne3 Bc5 56. Kg3 Qxe3+ 57. Kg2 Qe2+ 58. Kh3 Bd6 59. Kh4 Qf3 60. b4 Be7#) 49. f7 d2 50. f8=N+ Bxf8 51. Ne3 Rxe3+ 52. Kxe3 d1=Q (52... d1=R 53. Kf4 Rg1 54. Kf3 h5 55. Kf2 Rg7 56. Kf3 h4 57. Kf4 h3 58. Kf5 h2 59. Kf4 h1=Q 60. Ke3 Rg3+ 61. Kf4 Bd6+ 62. Kf5 Qd5+ 63. Kf6 Rg6#) 53. b4 Bxb4 54. Ke4 Qe2+ (54... Qxa4 55. Kf3 Bc5 56. Ke2 Qb3 57. Kd2 Qc4 58. Kd1 Qd3+ 59. Ke1 Qc2 60. Kf1 Qf2#) 55. Kf4 Bd6+ 56. Kf5 Qe5+ 57. Kg4 Qg3+ 58. Kh5 Qh3#) 38. e6 $19 {[%emt 0:00:01]} Qe8 {[%emt 0:00:39]} 39. Kh2 {[%emt 0:00:44]} Bxe3 {[%emt 0:00:08]} 40. Qxe3 {[%emt 0:00:01]} Qe7 {[%emt 0:00:24]} ({Stronger than} 40... Qxa4 41. e7 Qe8 42. Qd3 Qxe7 (42... Qh5+ 43. Kg3 $11) 43. Qxf5+ Kg7 44. Kh3 $11) 0-1

[Event "American Cup Open Elimination 2024"]
[Site "Saint Louis"]
[Date "2024.03.16"]
[Round "2.2"]
[White "Dominguez Perez, Leinier"]
[Black "Caruana, Fabiano"]
[Result "1/2-1/2"]
[ECO "B90"]
[WhiteElo "2749"]
[BlackElo "2804"]
[Annotator "TA"]
[PlyCount "52"]
[EventDate "2024.03.11"]
[EventType "k.o."]
[EventCountry "USA"]
[SourceTitle "playchess.com"]
[Source "ChessBase"]
[SourceQuality "1"]
[TimeControl "1500+10"]

{[%evp 18,52,31,34,42,32,41,37,57,51,69,56,66,64,58,59,30,47,52,24,27,28,14,21,26,25,65,0,0,0,0,0,0,0,0,0,0]} 1. e4 {[%emt 0:10:02]} c5 {[%emt 0:10:01]} 2. Nf3 {[%emt 0:00:02]} d6 {[%emt 0:00:01]} 3. d4 {[%emt 0:00:01]} cxd4 {[%emt 0:00:02]} 4. Nxd4 {[%emt 0:00:01]} Nf6 {[%emt 0:00:01]} 5. Nc3 {[%emt 0:00:02]} a6 {[%emt 0:00:01]} 6. Be3 {[%emt 0:00:02]} Ng4 {[%emt 0:00:02]} 7. Bg5 {[%emt 0:00:02][%cal Be3g5,Bg5h4,Bh4g3][%mdl 32]} h6 {[%emt 0:00:02]} 8. Bh4 {[%emt 0:00:01]} g5 {[%emt 0:00:01]} 9. Bg3 {[%emt 0:00:01]} Bg7 {[%emt 0:00:01]} 10. h3 {[%emt 0:00:02]} Nf6 {[%emt 0:00:02]} 11. Qf3 {[%emt 0:00:01]} O-O {[%emt 0:00:08]} 12. O-O-O {[%emt 0:00:03]} Nc6 {[%emt 0:00:03] White is slightly better.} 13. Nxc6 {[%emt 0:00:03]} bxc6 {[%emt 0:00:01]} 14. e5 {[%emt 0:00:01]} Nd5 {[%emt 0:00:02]} 15. Nxd5 {[%emt 0:00:02]} cxd5 {[%emt 0:00:01]} 16. h4 $1 {[%emt 0:00:11] [#] hxg5 would now be deadly.} (16. Rxd5 Bb7 17. Bd3 Bxd5 18. Qxd5 dxe5 19. Qxd8 (19. Qe4 $2 f5 $19) 19... Rfxd8 $17 (19... Raxd8 20. Bxa6 h5 21. Re1 $11)) 16... g4 {[%emt 0:00:03]} 17. Qxd5 {[%emt 0:00:02]} Rb8 {[%emt 0:00:29]} 18. Qe4 {[%emt 0:00:02]} (18. exd6 $2 Bxb2+ 19. Kd2 exd6 $19 (19... Be6 20. Qh5 $17)) 18... Qb6 {[%emt 0:00:31]} 19. b3 {[%emt 0:00:35][%cal Re5d6] Active counter play!} (19. exd6 $2 Qxb2+ (19... Bxb2+ $2 20. Kd2 $19) 20. Kd2 Qc3+ (20... Qxa2 21. Bd3 $16) 21. Ke2 exd6 $19) 19... Qa5 $1 {[%emt 0:00:02]} 20. Bd3 {[%emt 0:00:03]} (20. exd6 $2 Bf5 $19) 20... f5 $1 {[%emt 0:00:20]} 21. exf6 {[%emt 0:00:03]} Rxf6 {[%emt 0:00:02]} 22. Rhe1 {[%emt 0:01:12]} ({Reject} 22. Qxe7 Re6 23. Bc4 Qa3+ 24. Kd2 Qa5+ 25. Kc1 Qa3+ 26. Kd2 Qa5+ 27. Kc1 $11) (22. a4 $1 $14 Bf5 23. Bc4+ (23. Qxe7 Rc8 $11) 23... Kh8 24. Qe1 (24. Qxe7 $2 {is the wrong capture.} Qc3 $19)) 22... Qa3+ $1 $11 {[%emt 0:05:24] The position is equal.} 23. Kd2 $1 {[%emt 0:00:14]} Qa5+ {[%emt 0:00:05]} 24. Kc1 {[%emt 0:03:11] [#] Qh7+ is the strong threat.} Qa3+ $1 {[%emt 0:00:01]} 25. Kd2 $1 {[%emt 0:00:11] aiming for Qh7+.} Qa5+ {[%emt 0:00:01]} 26. Kc1 {[%emt 0:00:39] Black must now prevent Qh7+.} Qa3+ $1 {[%emt 0:00:12] Weighted Error Value: White=0.06 (flawless) /Black=0.02 (flawless) .  Mistake:       	White=1     	---        Inaccurate:     	White=1     	Black=1      OK:         	White=6     	Black=3      Best:        	White=5     	Black=3      Strong:       	White=3     	Black=5} 1/2-1/2

[Event "American Cup Open Elimination 2024"]
[Site "Saint Louis"]
[Date "2024.03.16"]
[Round "2.2"]
[White "Sevian, Samuel"]
[Black "So, Wesley"]
[Result "0-1"]
[ECO "C54"]
[WhiteElo "2697"]
[BlackElo "2789"]
[Annotator "TA"]
[PlyCount "76"]
[EventDate "2024.03.11"]
[EventType "k.o."]
[EventCountry "USA"]
[SourceTitle "playchess.com"]
[Source "ChessBase"]
[SourceQuality "1"]
[TimeControl "1500+10"]

{[%evp 12,76,17,10,11,18,14,8,16,14,27,0,0,0,0,-15,0,-20,-22,-20,-9,-18,-17,-28,-41,-28,-22,-23,-16,-60,-60,-50,-46,-38,-37,-36,-43,-39,-51,-30,-45,-48,-36,-37,-26,-73,-75,-74,-44,-50,-34,-125,-122,-466,-479,-29982,-29983,-29983,-29984,-29983,-29981,-29960,-29961,-1354,-1325,-29996,-29997]} 1. e4 {[%emt 0:10:01]} e5 {[%emt 0:10:05]} 2. Nf3 {[%emt 0:00:03]} Nc6 {[%emt 0:00:01]} 3. Bc4 {[%emt 0:00:02]} Nf6 {[%emt 0:00:02]} 4. d3 {[%emt 0:00:06]} Bc5 {[%emt 0:00:01]} 5. c3 {[%emt 0:00:02]} O-O {[%emt 0:00:11]} 6. O-O {[%emt 0:00:19]} d6 {[%emt 0:00:09]} 7. Re1 {[%emt 0:00:59]} a5 {[%emt 0:00:33]} 8. h3 {[%emt 0:00:29]} Be6 {[%emt 0:00:05]} 9. Bb5 {[%emt 0:00:18]} Ba7 {[%emt 0:00:09] The position is equal.} 10. Nbd2 {[%emt 0:00:33][%cal Bb1d2,Bd2f1,Bf1g3,Bg3f5][%mdl 32]} Ne7 {[%emt 0:00:04]} 11. Nf1 {[%emt 0:03:14]} Ng6 {[%emt 0:00:03]} 12. Ng3 {[%emt 0:00:01]} c6 {[%emt 0:00:15]} 13. Ba4 {[%emt 0:00:01]} d5 {[%emt 0:00:01]} 14. exd5 {[%emt 0:01:02]} Nxd5 {[%emt 0:00:05]} 15. d4 {[%emt 0:00:41]} exd4 {[%emt 0:00:04]} 16. Nxd4 {[%emt 0:00:01]} Qc7 {[%emt 0:00:05]} 17. Ngf5 {[%emt 0:05:20][%cal Of5g7]} Rae8 {[%emt 0:02:06]} 18. Bb3 {[%emt 0:00:31]} Bd7 {[%emt 0:03:39]} 19. Bxd5 {[%emt 0:01:44]} cxd5 {[%emt 0:00:10]} 20. Ng3 {[%emt 0:00:49]} Rxe1+ {[%emt 0:00:28]} 21. Qxe1 {[%emt 0:00:01]} f5 {[%emt 0:00:05][%cal Bf7f5,Bf5f4,Bf4f3][%mdl 32]} 22. Nge2 {[%emt 0:00:12]} f4 {[%emt 0:00:09]} 23. Nf3 {[%emt 0:00:11] Inhibits Qe5.} Ne5 {[%emt 0:03:42] aiming for ...Nxf3+.} 24. Ned4 {[%emt 0:00:01]} Bxd4 {[%emt 0:00:01]} 25. Nxd4 {[%emt 0:00:01] White is weak on the light squares} f3 {[%emt 0:00:01] Hoping for ...fxg2.} 26. g3 {[%emt 0:00:00]} Qd6 {[%emt 0:01:29]} 27. b3 {[%emt 0:00:57][%cal Oc1a3]} (27. Bf4 $2 Rxf4 (27... Re8 28. Qd2 $16) 28. Qf1 (28. gxf4 $2 Qg6+ 29. Kh2 Qg2#) 28... Re4 $19) 27... Nc6 {[%emt 0:01:46]} (27... Bxh3 28. Ba3 Qxa3 29. Qxe5) 28. Nxc6 {[%emt 0:01:22]} (28. Kh2 $11 {is more appropriate.}) 28... bxc6 $17 {[%emt 0:00:41]} 29. Qf1 Qe5 {[%emt 0:01:06] Black has more active pieces.} 30. Bd2 {[%emt 0:00:02]} Qh5 {[%emt 0:00:07]} 31. h4 {[%emt 0:00:07]} (31. Kh2 $15) 31... Re8 $1 $36 {[%emt 0:00:03][%mdl 2048] Strongly threatening ...Re4. Black is really pushing.} 32. Be3 $2 {[%emt 0:00:09][%mdl 8192] White does not recover from this.} (32. Re1 $17 {is a better chance.} Re2 33. Be3) 32... Re4 $1 $19 {[%emt 0:00:39][%cal Oe4h4]} 33. Rd1 {[%emt 0:00:22] [#]} (33. Qa6 h6 34. Rc1 g5 $19) (33. Qd3 $19 Bf5 34. Qd1 (34. Qa6 Qg4 $19)) 33... Rxh4 $1 {[%emt 0:00:37][%mdl 512]} 34. gxh4 {[%emt 0:00:05]} Qg4+ {[%emt 0:00:01]} 35. Kh2 {[%emt 0:00:01]} Qxh4+ {[%emt 0:00:01]} 36. Kg1 {[%emt 0:00:01] [#]} Bh3 $1 {[%emt 0:00:16]} 37. Rd4 {[%emt 0:00:18]} Qh5 {[%emt 0:00:00] ( -> ...Qg6+)} 38. Qd3 {[%emt 0:01:12] [#]} Bg2 $1 {[%emt 0:00:03] Weighted Error Value: White=0.60/Black=0.01 (flawless) .  Loses game:     	White=1     	---        Mistake:       	White=3     	---        Inaccurate:     	White=2     	Black=1      OK:         	White=12    	Black=15     Strong:       	---       	Black=2      Brilliant:      	---       	Black=1} 0-1

[Event "American Cup Open Elimination 2024"]
[Site "Saint Louis"]
[Date "2024.03.16"]
[Round "2.3"]
[White "Dominguez Perez, Leinier"]
[Black "Caruana, Fabiano"]
[Result "1/2-1/2"]
[ECO "B80"]
[WhiteElo "2749"]
[BlackElo "2804"]
[Annotator "TA"]
[PlyCount "141"]
[EventDate "2024.03.11"]
[EventType "k.o."]
[EventCountry "USA"]
[SourceTitle "playchess.com"]
[Source "ChessBase"]
[SourceQuality "1"]
[TimeControl "1500+10"]

{[%evp 57,141,0,0,-16,-16,-16,-16,-32,-37,-86,-14,-13,-8,-8,-8,-8,-8,-8,-8,-8,-8,-8,-8,-8,0,-14,-14,-14,-14,-14,-14,-14,-14,-14,-14,-14,-14,-14,-14,-14,-14,-14,-14,-14,-14,-14,-14,-14,-14,-14,-14,-14,-14,-14,-14,-14,-14,-14,-14,-21,-21,-21,-21,-21,-21,-21,-21,-21,-21,-22,-21,-21,-21,-21,-21,-21,-21,-21,-21,-21,-21,-21,-8,-8,-8,-8]} 1. e4 {[%emt 0:10:01]} c5 {[%emt 0:10:01]} 2. Nf3 {[%emt 0:00:02]} d6 {[%emt 0:00:01]} 3. d4 {[%emt 0:00:02]} cxd4 {[%emt 0:00:01]} 4. Nxd4 {[%emt 0:00:01]} Nf6 {[%emt 0:00:02]} 5. Nc3 {[%emt 0:00:01]} a6 {[%emt 0:00:01]} 6. Be3 {[%emt 0:00:02]} (6. f3 e5 7. Nb3 Be6 8. Be3 Be7 9. Qd2 h5 10. Nd5 Nxd5 11. exd5 Bf5 12. Be2 a5 13. a4 Bh4+ 14. g3 Be7 15. Bb5+ Bd7 16. Qe2 O-O 17. Nd2 Bxb5 18. Qxb5 Bg5 19. Bxg5 Qxg5 {½-½ Dominguez Perez,L (2745)-Caruana,F (2795) Sinquefield Cup 10th 2023 (1)}) 6... e6 {[%emt 0:00:02]} 7. a3 {[%emt 0:01:13] 7.Be2 is a critical line. B80: Sicilian Scheveningen: 6 g3 and 6 Be3, including English Attack.} Be7 {[%emt 0:00:02]} 8. f3 {[%emt 0:00:15]} h5 {[%emt 0:00:02]} 9. Bc4 {[%emt 0:00:50]} Qc7 {[%emt 0:00:02]} 10. Ba2 {[%emt 0:01:49]} Nc6 $146 {[%emt 0:00:12]} ({Predecessor:} 10... Bd7 11. O-O Nc6 12. h3 b5 13. Re1 O-O 14. f4 Rac8 15. Kh1 Nxd4 16. Bxd4 e5 {½-½ Ryazanov,A (2461)-Evtushenko,S (2547) Champion's League 2017/A email [4]}) 11. Qe2 {[%emt 0:00:23]} b5 {[%emt 0:00:09]} 12. O-O {[%emt 0:01:24]} Bd7 {[%emt 0:02:24]} 13. Rad1 {[%emt 0:00:23]} h4 {[%emt 0:00:11]} 14. h3 {[%emt 0:00:57]} Nh5 {[%emt 0:00:50]} 15. Qf2 {[%emt 0:00:11]} Ne5 {[%emt 0:00:23]} 16. Nde2 {[%emt 0:01:47]} a5 {[%emt 0:00:34]} 17. f4 {[%emt 0:01:58]} Nc4 {[%emt 0:00:02]} 18. Bxc4 {[%emt 0:00:48]} Qxc4 {[%emt 0:00:22]} 19. e5 {[%emt 0:00:18]} d5 {[%emt 0:00:38]} 20. f5 {[%emt 0:00:47]} b4 {[%emt 0:01:25]} 21. axb4 {[%emt 0:00:02]} axb4 {[%emt 0:00:02]} 22. b3 {[%emt 0:00:10]} Qc6 {[%emt 0:00:23]} 23. Na4 {[%emt 0:01:22]} Qxc2 {[%emt 0:04:37]} 24. Nb6 {[%emt 0:00:02]} Ra6 {[%emt 0:00:01]} 25. Rc1 {[%emt 0:02:31]} Qxf5 {[%emt 0:01:33]} 26. Qxf5 {[%emt 0:00:01]} exf5 {[%emt 0:00:01]} 27. Nxd5 {[%emt 0:00:01]} Bd8 {[%emt 0:00:05]} 28. Nc7+ {[%emt 0:00:26]} Bxc7 {[%emt 0:00:01]} 29. Rxc7 {[%emt 0:00:01]} Rc6 {[%emt 0:00:35]} 30. Rc1 {[%emt 0:00:22]} Rxc1+ {[%emt 0:00:06]} 31. Nxc1 {[%emt 0:00:17]} f4 {[%emt 0:00:55]} 32. Bc5 {[%emt 0:00:03]} Rh6 {[%emt 0:00:01]} 33. Nd3 {[%emt 0:00:13] [#]} (33. Ne2 $15 {should be considered.}) 33... Rg6 {[%emt 0:00:08]} (33... Ra6 $1 $17 34. Ra7 Rxa7 35. Bxa7 Bf5 36. Nxb4 Be6) 34. Kf2 $1 $11 {[%emt 0:00:34]} Bc6 {[%emt 0:01:32]} 35. Re7+ {[%emt 0:00:07]} Kd8 {[%emt 0:00:02]} 36. Rxf7 {[%emt 0:00:04]} Rxg2+ {[%emt 0:00:03]} 37. Ke1 {[%emt 0:00:00]} Bd5 {[%emt 0:01:37]} 38. Nxf4 {[%emt 0:00:35]} Bxf7 {[%emt 0:00:10]} 39. Nxg2 {[%emt 0:00:02]} g5 {[%emt 0:00:04]} 40. Bxb4 {[%emt 0:00:36]} Bd5 {[%emt 0:00:01]} 41. Nxh4 {[%emt 0:00:54]} gxh4 {[%emt 0:00:02]} 42. Bd2 {[%emt 0:00:01]} Bxb3 {[%emt 0:00:07]} 43. Bg5+ {[%emt 0:00:01]} Kd7 {[%emt 0:00:01]} 44. Bxh4 {[%emt 0:00:01]} Be6 {[%emt 0:00:01]} 45. Bg5 {[%emt 0:00:02]} Bxh3 {[%emt 0:00:01]} 46. Kd2 {[%emt 0:00:05]} Ke6 {[%emt 0:00:01]} 47. Bf6 {[%emt 0:00:01]} Kd5 {[%emt 0:00:02]} 48. Kc3 {[%emt 0:00:02]} Nf4 {[%emt 0:00:01]} 49. Kb4 {[%emt 0:00:02]} Be6 {[%emt 0:00:01]} 50. Kc3 {[%emt 0:00:01]} Ke4 {[%emt 0:00:01]} 51. Kd2 {[%emt 0:00:02]} Kd4 {[%emt 0:00:02]} 52. Bg7 {[%emt 0:00:05]} Nd3 {[%emt 0:00:02]} 53. Bf6 {[%emt 0:00:02]} Nc5 {[%emt 0:00:01]} 54. Bg7 {[%emt 0:00:08]} Ne4+ {[%emt 0:00:01]} 55. Kc2 {[%emt 0:00:02]} Kc4 {[%emt 0:00:01]} 56. Bf6 {[%emt 0:00:07]} Bd7 {[%emt 0:00:02]} 57. Bg7 {[%emt 0:00:05]} Ba4+ {[%emt 0:00:01]} 58. Kb2 {[%emt 0:00:02]} Nc5 {[%emt 0:00:01]} 59. Bf8 {[%emt 0:00:21]} Nd3+ {[%emt 0:00:03]} 60. Ka3 {[%emt 0:00:01]} Bd7 {[%emt 0:00:02]} 61. e6 {[%emt 0:00:20]} Bxe6 {[%emt 0:00:02]} 62. Ka4 {[%emt 0:00:05]} Bd7+ {[%emt 0:00:01]} 63. Ka5 {[%emt 0:00:01]} Ne5 {[%emt 0:00:01]} 64. Kb6 {[%emt 0:00:03]} Kd5 {[%emt 0:00:02]} 65. Bg7 {[%emt 0:00:04]} Nc4+ {[%emt 0:00:02]} 66. Kc7 $1 {[%emt 0:00:02]} Ba4 {[%emt 0:00:01]} 67. Bh8 {[%emt 0:00:03]} Nd6 {[%emt 0:00:12]} 68. Ba1 {[%emt 0:00:07]} Bd1 {[%emt 0:00:05]} 69. Bh8 {[%emt 0:00:10]} Kc5 {[%emt 0:00:04]} 70. Bd4+ {[%emt 0:00:05]} Kxd4 {[%emt 0:00:02]} (70... Kd5 71. Be3 $17) 71. Kxd6 {[%emt 0:00:01]} 1/2-1/2